fUSD/lending_fUSD_20240420
["ID","MTS","AMOUNT","RATE_DAILY","PERIOD"]
[323058781,1713621154634,-905.55,0.00019178,2]
[323058782,1713621154643,-500.0,0.00019178,2]
[323058783,1713621154653,-500.0,0.00019178,2]
[323058784,1713621154662,-500.0,0.00019178,2]
[323058785,1713621154672,-1271.86,0.00019178,2]
[323058786,1713621154683,-500.0,0.00019178,2]
[323058787,1713621154693,-531.26,0.00019178,2]
[323058788,1713621154703,-858.15,0.00019178,2]
[323058789,1713621154713,-454.80843416,0.00019178,2]
[323058790,1713621154723,-2051.78,0.00019178,2]
[323058791,1713621154733,-596.61950102,0.00019178,2]
[323058792,1713621154743,-2102.91,0.00019178,2]
[323058793,1713621154753,-495.25,0.00019178,2]
[323058794,1713621154762,-888.43,0.00019178,2]
[323058795,1713621154772,-500.0,0.00019178,2]
[323058796,1713621154782,-547.06,0.00019178,2]
[323058797,1713621154791,-1220.03,0.00019178,2]
[323058798,1713621154802,-1428.28,0.00019178,2]
[323058799,1713621154812,-1590.37,0.00019178,2]
[323058800,1713621154822,-640.38,0.00019178,2]
[323058801,1713621154831,-621.99,0.00019178,2]
[323058802,1713621154841,-1132.15,0.00019178,2]
[323058803,1713621154851,-1083.02,0.00019178,2]
[323058804,1713621154860,-912.32,0.00019178,2]
[323058805,1713621154869,-1323.41,0.00019178,2]
[323058806,1713621154879,-590.76,0.00019178,2]
[323058807,1713621154889,-827.0,0.00019178,2]
[323058808,1713621154899,-720.61,0.00019178,2]
[323058809,1713621154910,-1207.81,0.00019178,2]
[323058810,1713621154919,-1649.09,0.00019178,2]
[323058811,1713621154929,-3308.96,0.00019178,2]
[323058812,1713621154938,-972.02,0.00019178,2]
[323058813,1713621154948,-500.0,0.00019178,2]
[323058814,1713621154957,-1214.04,0.00019178,2]
[323058815,1713621154967,-500.0,0.00019178,2]
[323058816,1713621154976,-500.0,0.00019178,2]
[323058817,1713621154985,-803.54,0.00019178,2]
[323058818,1713621154995,-1303.19,0.00019178,2]
[323058819,1713621155005,-3936.85,0.00019178,2]
[323058820,1713621155015,-586.97,0.00019178,2]
[323058821,1713621155025,-599.69,0.00019178,2]
[323058822,1713621155035,-1031.32,0.00019178,2]
[323058823,1713621155047,-789.55,0.00019178,2]
[323058824,1713621155057,-1204.32,0.00019178,2]
[323058825,1713621155067,-500.0,0.00019178,2]
[323058826,1713621155078,-500.0,0.00019178,2]
[323058827,1713621155087,-702.73,0.00019178,2]
[323058828,1713621155098,-516.52,0.00019178,2]
[323058829,1713621155109,-3310.74,0.00019178,2]
[323058830,1713621155118,-500.0,0.00019178,2]
[323058831,1713621155129,-500.0,0.00019178,2]
[323058832,1713621155138,-2883.58,0.00019178,2]
[323058833,1713621155148,-1816.08,0.00019178,2]
[323058834,1713621155158,-585.36,0.00019178,2]
[323058835,1713621155169,-855.47,0.00019178,2]
[323058836,1713621155179,-534.99,0.00019178,2]
[323058837,1713621155189,-402.36459649,0.00019178,2]
[323058838,1713621155199,-25055.79,0.00019178,2]
[323058839,1713621155209,-1302.76,0.00019178,2]
[323058840,1713621155219,-1460.91,0.00019178,2]
[323058841,1713621155229,-11346.84,0.00019178,2]
[323058842,1713621155239,-2836.68,0.00019178,2]
[323058843,1713621155249,-604.68,0.00019178,2]
[323058844,1713621155260,-2104.73,0.00019178,2]
[323058845,1713621155270,-500.0,0.00019178,2]
[323058846,1713621155280,-2073.42,0.00019178,2]
[323058847,1713621155290,-1526.62,0.00019178,2]
[323058848,1713621155301,-500.0,0.00019178,2]
[323058849,1713621155312,-1538.77,0.00019178,2]
[323058850,1713621155321,-17543.18,0.00019178,2]
[323058851,1713621155332,-500.0,0.00019178,2]
[323058852,1713621155343,-500.0,0.00019178,2]
[323058853,1713621155354,-4660.49,0.00019178,2]
[323058854,1713621155363,-2699.08,0.00019178,2]
[323058855,1713621155373,-500.0,0.00019178,2]
[323058856,1713621155385,-1179.82,0.00019178,2]
[323058857,1713621155395,-1530.53,0.00019178,2]
[323058858,1713621155406,-581.88,0.00019178,2]
[323058859,1713621155416,-2419.34,0.00019178,2]
[323058860,1713621155426,-500.0,0.00019178,2]
[323058861,1713621155438,-1491.91,0.00019178,2]
[323058862,1713621155448,-1046.7,0.00019178,2]
[323058863,1713621155459,-929.27,0.00019178,2]
[323058864,1713621155469,-1397.79,0.00019178,2]
[323058865,1713621155479,-2207.26,0.00019178,2]
[323058866,1713621155489,-5291.84,0.00019178,2]
[323058867,1713621155499,-983.83,0.00019178,2]
[323058868,1713621155508,-584.35,0.00019178,2]
[323058869,1713621155520,-689.72,0.00019178,2]
[323058870,1713621155530,-2126.15,0.00019178,2]
[323058871,1713621155540,-3579.93,0.00019178,2]
[323058872,1713621155552,-873.88,0.00019178,2]
[323058873,1713621155563,-2569.48,0.00019178,2]
[323058874,1713621155573,-820.73,0.00019178,2]
[323058875,1713621155583,-5218.13,0.00019178,2]
[323058876,1713621155593,-500.0,0.00019178,2]
[323058877,1713621155603,-987.0,0.00019178,2]
[323058878,1713621155614,-20114.69,0.00019178,2]
[323058879,1713621155624,-500.0,0.00019178,2]
[323058880,1713621155634,-893.57,0.00019178,2]
[323058881,1713621155644,-637.43,0.00019178,2]
[323058882,1713621155654,-1731.18,0.00019178,2]
[323058883,1713621155664,-1285.12,0.00019178,2]
[323058884,1713621155673,-1109.59,0.00019178,2]
[323058885,1713621155684,-1096.27,0.00019178,2]
[323058886,1713621155694,-500.0,0.00019178,2]
[323058887,1713621155704,-725.21,0.00019178,2]
[323058888,1713621155714,-1089.81,0.00019178,2]
[323058889,1713621155724,-508.71,0.00019178,2]
[323058890,1713621155733,-500.0,0.00019178,2]
[323058891,1713621155743,-500.0,0.00019178,2]
[323058892,1713621155753,-1517.58,0.00019178,2]
[323058893,1713621155763,-520.08,0.00019178,2]
[323058894,1713621155773,-500.0,0.00019178,2]
[323058895,1713621155784,-1955.1,0.00019178,2]
[323058896,1713621155794,-500.0,0.00019178,2]
[323058897,1713621155805,-967.39,0.00019178,2]
[323058898,1713621155814,-620.62,0.00019178,2]
[323058899,1713621155823,-1531.19,0.00019178,2]
[323058900,1713621155834,-747.89,0.00019178,2]
[323058901,1713621155844,-7480.38,0.00019178,2]
[323058902,1713621155854,-1894.49,0.00019178,2]
[323058903,1713621155864,-873.58,0.00019178,2]
[323058904,1713621155874,-500.0,0.00019178,2]
[323058905,1713621155884,-1993.22,0.00019178,2]
[323058906,1713621155894,-880.45,0.00019178,2]
[323058907,1713621155903,-500.0,0.00019178,2]
[323058908,1713621155913,-1085.31,0.00019178,2]
[323058909,1713621155923,-500.0,0.00019178,2]
[323058910,1713621155932,-2753.72,0.00019178,2]
[323058911,1713621155941,-500.0,0.00019178,2]
[323058912,1713621155951,-1162.41,0.00019178,2]
[323058913,1713621155962,-2731.21,0.00019178,2]
[323058914,1713621155971,-1954.97,0.00019178,2]
[323058915,1713621155981,-2627.79,0.00019178,2]
[323058916,1713621155992,-794.92,0.00019178,2]
[323058917,1713621156001,-1013.89,0.00019178,2]
[323058918,1713621156011,-1131.55,0.00019178,2]
[323058919,1713621156021,-622.04,0.00019178,2]
[323058920,1713621156031,-1320.88,0.00019178,2]
[323058921,1713621156041,-1413.35,0.00019178,2]
[323058922,1713621156052,-500.0,0.00019178,2]
[323058923,1713621156063,-500.0,0.00019178,2]
[323058924,1713621156073,-2346.4,0.00019178,2]
[323058925,1713621156083,-563.88,0.00019178,2]
[323058926,1713621156093,-803.26,0.00019178,2]
[323058927,1713621156102,-2292.01,0.00019178,2]
[323058928,1713621156111,-500.0,0.00019178,2]
[323058929,1713621156121,-831.92,0.00019178,2]
[323058930,1713621156130,-1128.04,0.00019178,2]
[323058931,1713621156140,-5369.64,0.00019178,2]
[323058932,1713621156150,-3431.1,0.00019178,2]
[323058933,1713621156159,-680.01,0.00019178,2]
[323058934,1713621156169,-2676.86,0.00019178,2]
[323058935,1713621156179,-546.08,0.00019178,2]
[323058936,1713621156189,-727.28,0.00019178,2]
[323058937,1713621156199,-2216.75,0.00019178,2]
[323058938,1713621156208,-823.84,0.00019178,2]
[323058939,1713621156218,-1588.82,0.00019178,2]
[323058940,1713621156227,-841.25,0.00019178,2]
[323058941,1713621156237,-1811.35,0.00019178,2]
[323058942,1713621156247,-182.36393443,0.00019178,2]
[323058943,1713621156256,-866.08,0.00019178,2]
[323058944,1713621156265,-906.35,0.00019178,2]
[323058945,1713621156275,-1171.0,0.00019178,2]
[323058946,1713621156286,-3500.27,0.00019178,2]
[323058947,1713621156297,-506.37,0.00019178,2]
[323058948,1713621156308,-1349.52,0.00019178,2]
[323058949,1713621156317,-4084.13,0.00019178,2]
[323058950,1713621156327,-2730.13,0.00019178,2]
[323058951,1713621156337,-1215.96,0.00019178,2]
[323058952,1713621156346,-500.0,0.00019178,2]
[323058953,1713621156356,-570.63,0.00019178,2]
[323058954,1713621156366,-500.0,0.00019178,2]
[323058955,1713621156378,-1517.62,0.00019178,2]
[323058956,1713621156389,-2492.62,0.00019178,2]
[323058957,1713621156399,-1694.66,0.00019178,2]
[323058958,1713621156408,-589.63,0.00019178,2]
[323058959,1713621156418,-1038.52,0.00019178,2]
[323058960,1713621156427,-500.0,0.00019178,2]
[323058961,1713621156436,-544.68,0.00019178,2]
[323058962,1713621156446,-745.95,0.00019178,2]
[323058963,1713621156456,-2146.81,0.00019178,2]
[323058964,1713621156662,-500.0,0.00019178,2]
[323058965,1713621156691,-12863.04,0.00019178,2]
[323058966,1713621156701,-872.9,0.00019178,2]
[323058967,1713621156710,-1580.69,0.00019178,2]
[323058968,1713621156720,-2481.94,0.00019178,2]
[323058969,1713621156730,-2416.85,0.00019178,2]
[323058970,1713621156739,-517.67,0.00019178,2]
[323058971,1713621156749,-716.61,0.00019178,2]
[323058972,1713621156759,-607.93,0.00019178,2]
[323058973,1713621156768,-500.0,0.00019178,2]
[323058974,1713621156779,-698.46,0.00019178,2]
[323058975,1713621156788,-1176.49,0.00019178,2]
[323058976,1713621156799,-1895.23,0.00019178,2]
[323058977,1713621156809,-2366.37,0.00019178,2]
[323058978,1713621156818,-834.84,0.00019178,2]
[323058979,1713621156828,-500.0,0.00019178,2]
[323058980,1713621156838,-1264.42,0.00019178,2]
[323058981,1713621156848,-1525.57,0.00019178,2]
[323058982,1713621156859,-1200.1,0.00019178,2]
[323058983,1713621156870,-500.0,0.00019178,2]
[323058984,1713621156880,-350.0,0.00019178,2]
[323058985,1713621156890,-2596.31,0.00019178,2]
[323058986,1713621156900,-735.18,0.00019178,2]
[323058987,1713621156910,-3734.56,0.00019178,2]
[323058988,1713621156920,-1983.17,0.00019178,2]
[323058989,1713621156930,-685.33,0.00019178,2]
[323058990,1713621156941,-1892.67,0.00019178,2]
[323058991,1713621156951,-794.67,0.00019178,2]
[323058992,1713621156962,-2762.86,0.00019178,2]
[323058993,1713621156971,-698.53,0.00019178,2]
[323058994,1713621156981,-4314.41,0.00019178,2]
[323058995,1713621156991,-500.0,0.00019178,2]
[323058996,1713621157002,-928.74,0.00019178,2]
[323058997,1713621157012,-500.0,0.00019178,2]
[323058998,1713621157023,-556.39,0.00019178,2]
[323058999,1713621157032,-4750.03,0.00019178,2]
[323059000,1713621157041,-704.33,0.00019178,2]
[323059001,1713621157053,-6352.14,0.00019178,2]
[323059002,1713621157064,-554.92,0.00019178,2]
[323059003,1713621157074,-1612.53,0.00019178,2]
[323059004,1713621157084,-1230.53,0.00019178,2]
[323059005,1713621157093,-500.0,0.00019178,2]
[323059006,1713621157102,-1323.32,0.00019178,2]
[323059007,1713621157111,-5730.53,0.00019178,2]
[323059008,1713621157121,-3222.01,0.00019178,2]
[323059009,1713621157130,-1237.83,0.00019178,2]
[323059010,1713621157139,-801.29,0.00019178,2]
[323059011,1713621157149,-8896.9,0.00019178,2]
[323059012,1713621157159,-1250.13,0.00019178,2]
[323059013,1713621157169,-21516.91,0.00019178,2]
[323059014,1713621157179,-1238.37,0.00019178,2]
[323059015,1713621157188,-1269.11,0.00019178,2]
[323059016,1713621157198,-622.79,0.00019178,2]
[323059017,1713621157207,-204.0,0.00019178,2]
[323059018,1713621157217,-201.0,0.00019178,2]
[323059019,1713621157226,-200.0,0.00019178,2]
[323059020,1713621157236,-200.0,0.00019178,2]
[323059021,1713621157246,-200.0,0.00019178,2]
[323059022,1713621157256,-200.0,0.00019178,2]
[323059023,1713621157266,-163.0,0.00019178,2]
[323059024,1713621157276,-414.64,0.00019178,2]
[323059025,1713621157286,-3121.7,0.00019178,2]
[323059026,1713621157297,-334.389206,0.00019178,2]
[323059027,1713621157310,-334.389206,0.00019178,2]
[323059028,1713621157319,-334.389206,0.00019178,2]
[323059029,1713621157329,-334.389206,0.00019178,2]
[323059030,1713621157339,-334.389206,0.00019178,2]
[323059031,1713621157349,-334.389206,0.00019178,2]
[323059032,1713621157359,-334.389206,0.00019178,2]
[323059033,1713621157369,-334.389206,0.00019178,2]
[323059034,1713621157380,-334.389206,0.00019178,2]
[323059035,1713621157390,-334.389206,0.00019178,2]
[323059036,1713621157400,-334.389206,0.00019178,2]
[323059037,1713621157409,-334.389206,0.00019178,2]
[323059038,1713621157419,-334.389206,0.00019178,2]
[323059039,1713621157429,-334.389206,0.00019178,2]
[323059040,1713621157438,-334.389206,0.00019178,2]
[323059041,1713621157448,-334.389206,0.00019178,2]
[323059042,1713621157457,-334.389206,0.00019178,2]
[323059043,1713621157467,-334.389206,0.00019178,2]
[323059044,1713621157476,-334.389206,0.00019178,2]
[323059045,1713621157486,-334.389204,0.00019178,2]
[323059046,1713621157494,-8319.81,0.00019178,2]
[323059047,1713621157504,-55000.0,0.00019178,2]
[323059048,1713621157513,-200.0,0.00019178,2]
[323059049,1713621157523,-3235.56,0.000192,2]
[323059050,1713621157532,-4459.18,0.000192,2]
[323059051,1713621157541,-13374.61302675,0.000192,2]
[323059052,1713621157551,-17665.0,0.000192,3]
[323059053,1713621157560,-995.78,0.00019205,2]
[323059054,1713621157570,-150.0,0.00019218,2]
[323059055,1713621157579,-150.0,0.00019241,2]
[323059056,1713621157589,-150.0,0.00019307,2]
[323059057,1713621157598,-152.0,0.00019318,8]
[323059058,1713621157608,-150.0,0.00019322,2]
[323059059,1713621157617,-150.0,0.00019328,2]
[323059060,1713621157626,-150.0,0.0001936,2]
[323059061,1713621157636,-150.0,0.00019368,2]
[323059062,1713621157646,-178.0,0.00019372,2]
[323059063,1713621157655,-150.0,0.00019379,2]
[323059064,1713621157664,-17665.0,0.000194,5]
[323059065,1713621157674,-323.82084576,0.00019452,2]
[323059066,1713621157683,-1039.36,0.00019452,2]
[323059067,1713621157693,-740.0,0.00019452,2]
[323059068,1713621157702,-635.04,0.00019452,2]
[323059069,1713621157712,-639.54,0.00019452,2]
[323059070,1713621157721,-500.0,0.00019452,2]
[323059071,1713621157730,-500.0,0.00019452,2]
[323059072,1713621157739,-852.82,0.00019452,2]
[323059073,1713621157749,-654.32,0.00019452,2]
[323059074,1713621157758,-500.0,0.00019452,2]
[323059075,1713621157767,-502.56,0.00019452,2]
[323059076,1713621157777,-611.35,0.00019452,2]
[323059077,1713621157787,-500.0,0.00019452,2]
[323059078,1713621157797,-735.88,0.00019452,2]
[323059079,1713621157807,-717.35,0.00019452,2]
[323059080,1713621157816,-500.0,0.00019452,2]
[323059081,1713621157827,-539.29,0.00019452,2]
[323059082,1713621157836,-623.45454852,0.00019452,2]
[323059083,1713621157846,-500.0,0.00019452,2]
[323059084,1713621157856,-500.0,0.00019452,2]
[323059085,1713621157867,-500.0,0.00019452,2]
[323059086,1713621157876,-452.43511147,0.00019452,2]
[323059087,1713621157885,-569.73,0.00019452,2]
[323059088,1713621157894,-500.0,0.00019452,2]
[323059089,1713621157904,-637.21,0.00019452,2]
[323059090,1713621157913,-827.03,0.00019452,2]
[323059091,1713621157924,-500.0,0.00019452,2]
[323059092,1713621157933,-579.7,0.00019452,2]
[323059093,1713621157943,-969.36,0.00019452,2]
[323059094,1713621157953,-781.94,0.00019452,2]
[323059095,1713621157963,-667.13,0.00019452,2]
[323059096,1713621157972,-500.0,0.00019452,2]
[323059097,1713621157982,-500.0,0.00019452,2]
[323059098,1713621157991,-500.0,0.00019452,2]
[323059099,1713621158001,-770.44,0.00019452,2]
[323059100,1713621158010,-1099.12,0.00019452,2]
[323059101,1713621158019,-597.89,0.00019452,2]
[323059102,1713621158028,-500.0,0.00019452,2]
[323059103,1713621158038,-522.54,0.00019452,2]
[323059104,1713621158048,-500.0,0.00019452,2]
[323059105,1713621158057,-532.55,0.00019452,2]
[323059106,1713621158066,-500.0,0.00019452,2]
[323059107,1713621158076,-618.57,0.00019452,2]
[323059108,1713621158086,-500.0,0.00019452,2]
[323059109,1713621158102,-737.86,0.00019452,2]
[323059110,1713621158121,-500.0,0.00019452,2]
[323059111,1713621158138,-515.87,0.00019452,2]
[323059112,1713621158157,-912.68,0.00019452,2]
[323059113,1713621158172,-500.0,0.00019452,2]
[323059114,1713621158188,-860.75,0.00019452,2]
[323059115,1713621158205,-500.0,0.00019452,2]
[323059116,1713621158220,-702.21,0.00019452,2]
[323059117,1713621158240,-500.0,0.00019452,2]
[323059118,1713621158257,-500.0,0.00019452,2]
[323059119,1713621158274,-821.61,0.00019452,2]
[323059120,1713621158294,-821.76,0.00019452,2]
[323059121,1713621158313,-500.0,0.00019452,2]
[323059122,1713621158326,-152.50239266,0.00019452,2]
[323059123,1713621158345,-940.84,0.00019452,2]
[323059124,1713621158360,-500.0,0.00019452,2]
[323059125,1713621158378,-863.56,0.00019452,2]
[323059126,1713621158395,-1083.21,0.00019452,2]
[323059127,1713621158411,-1649.11,0.00019452,2]
[323059128,1713621158427,-500.0,0.00019452,2]
[323059129,1713621158444,-500.0,0.00019452,2]
[323059130,1713621158460,-933.2,0.00019452,2]
[323059131,1713621158475,-1738.53,0.00019452,2]
[323059132,1713621158492,-500.0,0.00019452,2]
[323059133,1713621158508,-500.0,0.00019452,2]
[323059134,1713621158524,-641.19,0.00019452,2]
[323059135,1713621158540,-546.2,0.00019452,2]
[323059136,1713621158555,-669.09,0.00019452,2]
[323059137,1713621158571,-538.48,0.00019452,2]
[323059138,1713621158587,-1472.9,0.00019452,2]
[323059139,1713621158603,-526.85,0.00019452,2]
[323059140,1713621158618,-633.05,0.00019452,2]
[323059141,1713621158633,-500.0,0.00019452,2]
[323059142,1713621158648,-679.04,0.00019452,2]
[323059143,1713621158663,-348.66355829,0.00019452,2]
[323059144,1713621158678,-749.34,0.00019452,2]
[323059145,1713621158693,-614.66,0.00019452,2]
[323059146,1713621158709,-889.7,0.00019452,2]
[323059147,1713621158724,-669.86,0.00019452,2]
[323059148,1713621158739,-627.14,0.00019452,2]
[323059149,1713621158754,-887.51,0.00019452,2]
[323059150,1713621158770,-500.0,0.00019452,2]
[323059151,1713621158786,-595.2,0.00019452,2]
[323059152,1713621158801,-712.4,0.00019452,2]
[323059153,1713621158816,-583.86,0.00019452,2]
[323059154,1713621158832,-714.19,0.00019452,2]
[323059155,1713621158848,-654.49,0.00019452,2]
[323059156,1713621158864,-500.0,0.00019452,2]
[323059157,1713621158881,-543.54,0.00019452,2]
[323059158,1713621158897,-856.07,0.00019452,2]
[323059159,1713621158913,-519.9,0.00019452,2]
[323059160,1713621158927,-1382.29,0.00019452,2]
[323059161,1713621158943,-704.01,0.00019452,2]
[323059162,1713621158958,-500.0,0.00019452,2]
[323059163,1713621158973,-943.86,0.00019452,2]
[323059164,1713621158989,-778.05,0.00019452,2]
[323059165,1713621159005,-533.87,0.00019452,2]
[323059166,1713621159020,-1206.79,0.00019452,2]
[323059167,1713621159035,-864.0,0.00019452,2]
[323059168,1713621159051,-871.35,0.00019452,2]
[323059169,1713621159066,-581.68,0.00019452,2]
[323059170,1713621159082,-998.69,0.00019452,2]
[323059171,1713621159098,-580.51,0.00019452,2]
[323059172,1713621159114,-564.88,0.00019452,2]
[323059173,1713621159129,-777.99,0.00019452,2]
[323059174,1713621159144,-566.7,0.00019452,2]
[323059175,1713621159158,-772.56,0.00019452,2]
[323059176,1713621159173,-922.4,0.00019452,2]
[323059177,1713621159187,-508.6172324,0.00019452,2]
[323059178,1713621159202,-741.19,0.00019452,2]
[323059179,1713621159217,-510.23,0.00019452,2]
[323059180,1713621159231,-500.0,0.00019452,2]
[323059181,1713621159246,-1301.99,0.00019452,2]
[323059182,1713621159260,-1011.91,0.00019452,2]
[323059183,1713621159275,-729.34,0.00019452,2]
[323059184,1713621159289,-598.99,0.00019452,2]
[323059185,1713621159306,-590.27,0.00019452,2]
[323059186,1713621159321,-500.0,0.00019452,2]
[323059187,1713621159336,-983.5,0.00019452,2]
[323059188,1713621159351,-500.0,0.00019452,2]
[323059189,1713621159367,-500.0,0.00019452,2]
[323059190,1713621159382,-271.94784019,0.00019452,2]
[323059191,1713621159398,-829.71,0.00019452,2]
[323059192,1713621159413,-605.59,0.00019452,2]
[323059193,1713621159430,-1243.7,0.00019452,2]
[323059194,1713621159444,-1886.34,0.00019452,2]
[323059195,1713621159459,-685.34,0.00019452,2]
[323059196,1713621159474,-500.0,0.00019452,2]
[323059197,1713621159489,-500.0,0.00019452,2]
[323059198,1713621159504,-500.0,0.00019452,2]
[323059199,1713621159520,-612.53,0.00019452,2]
[323059200,1713621159535,-723.5,0.00019452,2]
[323059201,1713621159551,-730.92,0.00019452,2]
[323059202,1713621159568,-500.0,0.00019452,2]
[323059203,1713621159583,-1025.52,0.00019452,2]
[323059204,1713621159600,-448.51352408,0.00019452,2]
[323059205,1713621159614,-1486.68,0.00019452,2]
[323059206,1713621159630,-500.0,0.00019452,2]
[323059207,1713621159645,-970.1,0.00019452,2]
[323059208,1713621159659,-500.0,0.00019452,2]
[323059209,1713621159675,-600.76,0.00019452,2]
[323059210,1713621159691,-580.95,0.00019452,2]
[323059211,1713621159706,-775.5,0.00019452,2]
[323059212,1713621159721,-1195.92,0.00019452,2]
[323059213,1713621159738,-971.12,0.00019452,2]
[323059214,1713621159752,-558.98,0.00019452,2]
[323059215,1713621159767,-751.59,0.00019452,2]
[323059216,1713621159781,-1627.69,0.00019452,2]
[323059217,1713621159796,-1693.65,0.00019452,2]
[323059218,1713621159812,-500.0,0.00019452,2]
[323059219,1713621159828,-712.6,0.00019452,2]
[323059220,1713621159842,-500.0,0.00019452,2]
[323059221,1713621159858,-964.32,0.00019452,2]
[323059222,1713621159874,-611.81,0.00019452,2]
[323059223,1713621159889,-1500.36,0.00019452,2]
[323059224,1713621159905,-630.97,0.00019452,2]
[323059225,1713621159920,-1123.09,0.00019452,2]
[323059226,1713621159937,-500.0,0.00019452,2]
[323059227,1713621159952,-1122.67,0.00019452,2]
[323059228,1713621159968,-571.83,0.00019452,2]
[323059229,1713621159984,-959.94,0.00019452,2]
[323059230,1713621159999,-666.18,0.00019452,2]
[323059231,1713621160015,-717.02,0.00019452,2]
[323059232,1713621160030,-500.0,0.00019452,2]
[323059233,1713621160046,-656.38,0.00019452,2]
[323059234,1713621160064,-672.57,0.00019452,2]
[323059235,1713621160080,-500.0,0.00019452,2]
[323059236,1713621160095,-817.63,0.00019452,2]
[323059237,1713621160110,-748.28,0.00019452,2]
[323059238,1713621160126,-1401.32,0.00019452,2]
[323059239,1713621160143,-1699.19,0.00019452,2]
[323059240,1713621160159,-1021.58,0.00019452,2]
[323059241,1713621160173,-2008.01,0.00019452,2]
[323059242,1713621160194,-500.0,0.00019452,2]
[323059243,1713621160209,-502.08,0.00019452,2]
[323059244,1713621160225,-623.84,0.00019452,2]
[323059245,1713621160240,-556.29,0.00019452,2]
[323059246,1713621160255,-1672.8,0.00019452,2]
[323059247,1713621160270,-1383.08,0.00019452,2]
[323059248,1713621160286,-207.59031596,0.00019452,2]
[323059249,1713621160305,-905.55,0.00019452,2]
[323059250,1713621160319,-500.0,0.00019452,2]
[323059251,1713621160334,-500.0,0.00019452,2]
[323059252,1713621160351,-500.0,0.00019452,2]
[323059253,1713621160367,-1271.86,0.00019452,2]
[323059254,1713621160385,-500.0,0.00019452,2]
[323059255,1713621160402,-531.26,0.00019452,2]
[323059256,1713621160714,-858.15,0.00019452,2]
[323059257,1713621160724,-2051.78,0.00019452,2]
[323059258,1713621160734,-2102.91,0.00019452,2]
[323059259,1713621160743,-495.25,0.00019452,2]
[323059260,1713621160753,-888.43,0.00019452,2]
[323059261,1713621160763,-295.59872298,0.00019452,2]
[323059262,1713621160773,-547.06,0.00019452,2]
[323059263,1713621160782,-1220.03,0.00019452,2]
[323059264,1713621160792,-1428.28,0.00019452,2]
[323059265,1713621160806,-1590.37,0.00019452,2]
[323059266,1713621160816,-640.38,0.00019452,2]
[323059267,1713621160826,-621.99,0.00019452,2]
[323059268,1713621160835,-1132.15,0.00019452,2]
[323059269,1713621160845,-1083.02,0.00019452,2]
[323059270,1713621160855,-912.32,0.00019452,2]
[323059271,1713621160865,-1323.41,0.00019452,2]
[323059272,1713621160875,-827.0,0.00019452,2]
[323059273,1713621160885,-590.76,0.00019452,2]
[323059274,1713621160894,-720.61,0.00019452,2]
[323059275,1713621160905,-1207.81,0.00019452,2]
[323059276,1713621160916,-1649.09,0.00019452,2]
[323059277,1713621160926,-3308.96,0.00019452,2]
[323059278,1713621160935,-972.02,0.00019452,2]
[323059279,1713621160944,-500.0,0.00019452,2]
[323059280,1713621160954,-1214.04,0.00019452,2]